[Event "*** MasterClass Titled Tuesday Blitz"]
[Site "Chess.com"]
[Date "2017.12.05"]
[Round "4"]
[White "saikrishnaReturns"]
[Black "Lunaticx"]
[Result "0-1"]
[WhiteElo "2422"]
[BlackElo "2712"]
[TimeControl "180+2"]
[EndTime "15:01:12 PST"]
[Termination "Lunaticx won by resignation"]

1. e4 {[%clk 0:03:01.9]} 1... c5 {[%clk 0:02:56.9]} 2. Nf3 {[%clk 0:03:02.3]}
2... Nc6 {[%clk 0:02:58.3]} 3. Nc3 {[%clk 0:03:01.7]} 3... d6 {[%clk 0:02:58.4]}
4. d4 {[%clk 0:03:02.3]} 4... cxd4 {[%clk 0:02:59.8]} 5. Nxd4 {[%clk 0:03:04.1]}
5... Nf6 {[%clk 0:03:01.4]} 6. Bg5 {[%clk 0:03:04.4]} 6... e6 {[%clk 0:03:02.5]}
7. Qd2 {[%clk 0:03:05.4]} 7... a6 {[%clk 0:03:03.5]} 8. O-O-O {[%clk 0:03:06.3]}
8... Bd7 {[%clk 0:03:04.4]} 9. f3 {[%clk 0:03:07.6]} 9... Be7 {[%clk 0:02:59.2]}
10. Be3 {[%clk 0:03:06.5]} 10... h5 {[%clk 0:02:58]} 11. Nxc6 {[%clk 0:03:00.8]}
11... Bxc6 {[%clk 0:02:58.1]} 12. Bf4 {[%clk 0:03:00.3]} 12... d5 {[%clk
0:02:53.7]} 13. e5 {[%clk 0:02:20.3]} 13... Nd7 {[%clk 0:02:54.2]} 14. h4 {[%clk
0:02:21.3]} 14... Bxh4 {[%clk 0:02:46.9]} 15. g3 {[%clk 0:02:13.5]} 15... Be7
{[%clk 0:02:45.6]} 16. g4 {[%clk 0:02:14.6]} 16... g5 {[%clk 0:02:41]} 17. Bg3
{[%clk 0:01:45.7]} 17... h4 {[%clk 0:02:32.8]} 18. f4 {[%clk 0:01:46.9]} 18...
Rg8 {[%clk 0:02:20.1]} 19. Bh2 {[%clk 0:01:40.5]} 19... gxf4 {[%clk 0:02:20.4]}
20. Bxf4 {[%clk 0:01:41.4]} 20... Rxg4 {[%clk 0:02:20.5]} 21. Kb1 {[%clk
0:01:38.8]} 21... Bg5 {[%clk 0:02:21]} 22. Bxg5 {[%clk 0:01:33.9]} 22... Qxg5
{[%clk 0:02:22.9]} 23. Qf2 {[%clk 0:01:35]} 23... d4 {[%clk 0:02:07.1]} 24. Bh3
{[%clk 0:01:17]} 24... Bxh1 {[%clk 0:01:40.4]} 25. Bxg4 {[%clk 0:01:15.6]} 25...
Qxg4 {[%clk 0:01:36.5]} 26. Rxd4 {[%clk 0:01:16.3]} 26... Qg3 {[%clk 0:01:26.7]}
27. Qd2 {[%clk 0:01:07.8]} 27... Bc6 {[%clk 0:01:21.4]} 28. a4 {[%clk
0:00:57.3]} 28... h3 {[%clk 0:01:19.4]} 29. Ne4 {[%clk 0:00:46.5]} 29... Bxe4
{[%clk 0:01:20]} 30. Rxd7 {[%clk 0:00:47.1]} 30... Qxe5 {[%clk 0:01:18.1]} 31.
Rxb7 {[%clk 0:00:32.6]} 31... Bxb7 {[%clk 0:01:16.9]} 0-1

[Event "*** MasterClass Titled Tuesday Blitz"]
[Site "Chess.com"]
[Date "2017.12.05"]
[Round "4"]
[White "1e41-0"]
[Black "Msb2"]
[Result "0-1"]
[WhiteElo "2355"]
[BlackElo "2716"]
[TimeControl "180+2"]
[EndTime "15:01:22 PST"]
[Termination "Msb2 won by resignation"]

1. d4 {[%clk 0:03:01.9]} 1... Nf6 {[%clk 0:03:00.9]} 2. c4 {[%clk 0:03:02.2]}
2... e6 {[%clk 0:03:02.1]} 3. Nc3 {[%clk 0:03:02.8]} 3... Bb4 {[%clk 0:03:02.7]}
4. f3 {[%clk 0:03:03.7]} 4... d5 {[%clk 0:03:01.3]} 5. a3 {[%clk 0:03:04.2]}
5... Bxc3+ {[%clk 0:03:02.3]} 6. bxc3 {[%clk 0:03:06]} 6... c5 {[%clk
0:03:03.3]} 7. cxd5 {[%clk 0:03:07]} 7... Nxd5 {[%clk 0:03:05.2]} 8. Qd2 {[%clk
0:03:07]} 8... f5 {[%clk 0:03:03.4]} 9. Nh3 {[%clk 0:03:04.2]} 9... O-O {[%clk
0:03:01.6]} 10. e3 {[%clk 0:03:00]} 10... b6 {[%clk 0:02:58.1]} 11. Bb2 {[%clk
0:02:56.4]} 11... Ba6 {[%clk 0:02:58.7]} 12. c4 {[%clk 0:02:52.2]} 12... Nc7
{[%clk 0:02:54.9]} 13. dxc5 {[%clk 0:02:26.7]} 13... bxc5 {[%clk 0:02:46.6]} 14.
Qxd8 {[%clk 0:02:23.8]} 14... Rxd8 {[%clk 0:02:48.5]} 15. Be5 {[%clk 0:02:24.2]}
15... Rd7 {[%clk 0:02:49.7]} 16. Nf4 {[%clk 0:02:23.1]} 16... Kf7 {[%clk
0:02:47.7]} 17. Rd1 {[%clk 0:02:21.7]} 17... Rxd1+ {[%clk 0:02:40.9]} 18. Kxd1
{[%clk 0:02:23.6]} 18... Ne8 {[%clk 0:02:42.5]} 19. Be2 {[%clk 0:01:49.6]} 19...
Nd7 {[%clk 0:02:43]} 20. Bc3 {[%clk 0:01:43.9]} 20... Nb6 {[%clk 0:02:43.4]} 21.
Kc2 {[%clk 0:01:39.2]} 21... Bxc4 {[%clk 0:02:39.5]} 22. Rd1 {[%clk 0:01:37.3]}
22... Bxe2 {[%clk 0:02:36.1]} 23. Nxe2 {[%clk 0:01:38.5]} 23... Nd5 {[%clk
0:02:34.5]} 24. Bd2 {[%clk 0:01:33.3]} 24... Rd8 {[%clk 0:02:19]} 25. e4 {[%clk
0:01:30.9]} 25... Nb6 {[%clk 0:02:18.5]} 26. Rb1 {[%clk 0:01:17.6]} 26... fxe4
{[%clk 0:02:08.3]} 27. fxe4 {[%clk 0:01:16.4]} 27... Nd6 {[%clk 0:02:09.8]} 28.
Nc3 {[%clk 0:00:58.8]} 28... Ndc4 {[%clk 0:02:09.9]} 29. Rf1+ {[%clk 0:00:57.2]}
29... Kg6 {[%clk 0:02:09]} 30. Bc1 {[%clk 0:00:57]} 30... Rd7 {[%clk 0:01:59.4]}
31. g4 {[%clk 0:00:52.4]} 31... Ne5 {[%clk 0:01:47.1]} 32. Bf4 {[%clk
0:00:39.7]} 32... Rf7 {[%clk 0:01:38.9]} 33. h3 {[%clk 0:00:34.5]} 33... c4
{[%clk 0:01:37.2]} 34. Ne2 {[%clk 0:00:30.8]} 34... Nd3 {[%clk 0:01:38.2]} 35.
h4 {[%clk 0:00:31.8]} 35... h5 {[%clk 0:01:37.7]} 36. gxh5+ {[%clk 0:00:29.2]}
36... Kxh5 {[%clk 0:01:39.6]} 37. Rf3 {[%clk 0:00:24.2]} 37... Ne1+ {[%clk
0:01:39.9]} 0-1

[Event "*** MasterClass Titled Tuesday Blitz"]
[Site "Chess.com"]
[Date "2017.12.05"]
[Round "4"]
[White "TomasPabloFerreira"]
[Black "PivixBanni"]
[Result "1-0"]
[WhiteElo "946"]
[BlackElo "1208"]
[TimeControl "180+2"]
[EndTime "15:01:31 PST"]
[Termination "TomasPabloFerreira won by resignation"]

1. e4 {[%clk 0:03:01.9]} 1... e5 {[%clk 0:03:00.2]} 2. Nf3 {[%clk 0:03:02.4]}
2... Nc6 {[%clk 0:03:00.4]} 3. Bb5 {[%clk 0:03:02.2]} 3... a6 {[%clk 0:02:59.4]}
4. Bxc6 {[%clk 0:03:02.7]} 4... dxc6 {[%clk 0:03:01.3]} 5. d3 {[%clk 0:03:00.7]}
5... Bd6 {[%clk 0:03:01]} 6. Be3 {[%clk 0:02:56.9]} 6... Bg4 {[%clk 0:03:00]} 7.
h3 {[%clk 0:02:52.4]} 7... Bh5 {[%clk 0:02:57.6]} 8. Nbd2 {[%clk 0:02:49.1]}
8... Nf6 {[%clk 0:02:57.5]} 9. g4 {[%clk 0:02:42.4]} 9... Bg6 {[%clk 0:02:55.9]}
10. Nc4 {[%clk 0:02:35.3]} 10... Qd7 {[%clk 0:02:47.2]} 11. Nfxe5 {[%clk
0:02:28.6]} 11... Qe6 {[%clk 0:02:30.3]} 12. Nxg6 {[%clk 0:02:21.6]} 12... hxg6
{[%clk 0:02:32.2]} 13. Qf3 {[%clk 0:02:17]} 13... O-O-O {[%clk 0:02:21.2]} 14.
O-O-O {[%clk 0:02:14.2]} 14... b5 {[%clk 0:02:00]} 15. Na5 {[%clk 0:02:08.6]}
15... Qxa2 {[%clk 0:01:51]} 16. Nxc6 {[%clk 0:02:08.3]} 16... Rd7 {[%clk
0:01:43.6]} 17. e5 {[%clk 0:02:05.7]} 17... Qa1+ {[%clk 0:01:40.7]} 18. Kd2
{[%clk 0:02:01.5]} 18... Qxb2 {[%clk 0:01:29.2]} 19. exd6 {[%clk 0:01:57.7]}
19... Rxd6 {[%clk 0:01:26]} 20. Bc5 {[%clk 0:01:54.3]} 20... Re6 {[%clk
0:01:17.1]} 21. Rb1 {[%clk 0:01:48]} 21... Qa2 {[%clk 0:01:09.3]} 22. Nb4 {[%clk
0:01:40.6]} 22... Qa5 {[%clk 0:00:35.1]} 23. Qa8+ {[%clk 0:01:27.2]} 23... Kd7
{[%clk 0:00:34.1]} 24. Qxh8 {[%clk 0:01:26.9]} 24... Nd5 {[%clk 0:00:33.5]} 25.
Qxg7 {[%clk 0:01:20.1]} 25... Nxb4 {[%clk 0:00:26.6]} 26. Rxb4 {[%clk
0:01:11.9]} 26... Rc6 {[%clk 0:00:21.6]} 27. Ra1 {[%clk 0:01:01.6]} 27... Qxb4+
{[%clk 0:00:19.2]} 28. Bxb4 {[%clk 0:01:01.2]} 28... Rxc2+ {[%clk 0:00:19.1]}
29. Kxc2 {[%clk 0:01:01.5]} 1-0

[Event "*** MasterClass Titled Tuesday Blitz"]
[Site "Chess.com"]
[Date "2017.12.05"]
[Round "4"]
[White "AbdAlAgathos"]
[Black "FearNoEvil12"]
[Result "1-0"]
[WhiteElo "2303"]
[BlackElo "2046"]
[TimeControl "180+2"]
[EndTime "15:01:49 PST"]
[Termination "AbdAlAgathos won by resignation"]

1. e4 {[%clk 0:03:01.9]} 1... a6 {[%clk 0:03:00.3]} 2. d4 {[%clk 0:03:01]} 2...
b5 {[%clk 0:03:01.6]} 3. a4 {[%clk 0:03:01.7]} 3... b4 {[%clk 0:03:01.5]} 4. Bd3
{[%clk 0:02:59.7]} 4... Bb7 {[%clk 0:03:02.7]} 5. Qe2 {[%clk 0:03:00.5]} 5... e6
{[%clk 0:03:03.9]} 6. Nf3 {[%clk 0:03:00.1]} 6... Nf6 {[%clk 0:03:05.3]} 7. O-O
{[%clk 0:02:57.6]} 7... d6 {[%clk 0:03:05.7]} 8. c4 {[%clk 0:02:56]} 8... bxc3
{[%clk 0:03:04.9]} 9. bxc3 {[%clk 0:02:50.4]} 9... Nbd7 {[%clk 0:03:06.2]} 10.
Nbd2 {[%clk 0:02:47.5]} 10... h6 {[%clk 0:03:06.1]} 11. Rb1 {[%clk 0:02:33.1]}
11... Rb8 {[%clk 0:03:05.6]} 12. Bxa6 {[%clk 0:02:28.7]} 12... Bxa6 {[%clk
0:03:01.9]} 13. Qxa6 {[%clk 0:02:30.6]} 13... Rxb1 {[%clk 0:03:00.4]} 14. Nxb1
{[%clk 0:02:32.5]} 14... Nxe4 {[%clk 0:03:00.5]} 15. Re1 {[%clk 0:02:30.8]}
15... d5 {[%clk 0:02:58.3]} 16. c4 {[%clk 0:02:07.4]} 16... Bb4 {[%clk
0:02:51.4]} 17. Rd1 {[%clk 0:02:01.9]} 17... O-O {[%clk 0:02:50.7]} 18. cxd5
{[%clk 0:01:57]} 18... exd5 {[%clk 0:02:50.3]} 19. Qc6 {[%clk 0:01:51.4]} 19...
Ndf6 {[%clk 0:02:47]} 20. Bf4 {[%clk 0:01:49.6]} 20... Bd6 {[%clk 0:02:44.5]}
21. Be5 {[%clk 0:01:43.2]} 21... Qa8 {[%clk 0:02:35]} 22. Qc2 {[%clk 0:01:35]}
22... Qa5 {[%clk 0:02:26.9]} 23. Nbd2 {[%clk 0:01:31.5]} 23... Nxd2 {[%clk
0:02:23.5]} 24. Qxd2 {[%clk 0:01:21.2]} 24... Qxd2 {[%clk 0:02:22.2]} 25. Rxd2
{[%clk 0:01:23.1]} 25... Ne4 {[%clk 0:02:22.4]} 26. Ra2 {[%clk 0:01:22.6]} 26...
Ra8 {[%clk 0:02:23.6]} 27. Bxd6 {[%clk 0:01:18.2]} 27... Nxd6 {[%clk 0:02:17.8]}
28. Ne5 {[%clk 0:01:15.6]} 28... Nc4 {[%clk 0:02:15.3]} 29. Nxc4 {[%clk
0:01:11.3]} 29... dxc4 {[%clk 0:02:15.5]} 30. Kf1 {[%clk 0:01:12]} 30... Kf8
{[%clk 0:02:13.7]} 31. Ke2 {[%clk 0:01:10]} 31... Ke7 {[%clk 0:02:14.8]} 32. Kd2
{[%clk 0:01:11.5]} 32... Kd6 {[%clk 0:02:16]} 33. Kc3 {[%clk 0:01:13]} 33... Kd5
{[%clk 0:02:17]} 34. a5 {[%clk 0:01:14]} 34... Ra6 {[%clk 0:02:07.7]} 35. Ra4
{[%clk 0:01:13.5]} 35... c6 {[%clk 0:02:07.6]} 36. h4 {[%clk 0:01:02]} 36... g5
{[%clk 0:02:07.3]} 37. hxg5 {[%clk 0:01:01.7]} 37... hxg5 {[%clk 0:02:08.2]} 38.
g4 {[%clk 0:01:03]} 38... f6 {[%clk 0:02:08.5]} 39. f3 {[%clk 0:01:03.6]} 39...
Ra7 {[%clk 0:02:04.9]} 40. a6 {[%clk 0:01:04.3]} 40... Kd6 {[%clk 0:01:59.7]}
41. Kxc4 {[%clk 0:01:05]} 41... Kd7 {[%clk 0:01:38.5]} 42. Kc5 {[%clk
0:01:05.2]} 42... Kc7 {[%clk 0:01:40]} 43. Ra3 {[%clk 0:01:05.9]} 43... Ra8
{[%clk 0:01:36.3]} 44. a7 {[%clk 0:01:06.1]} 44... Kb7 {[%clk 0:01:37.2]} 45.
Ra1 {[%clk 0:00:59.2]} 45... Kc7 {[%clk 0:01:37.5]} 46. Rh1 {[%clk 0:00:53]}
46... Rxa7 {[%clk 0:01:32.6]} 47. Rh7+ {[%clk 0:00:53.8]} 47... Kb8 {[%clk
0:01:34.1]} 48. Rxa7 {[%clk 0:00:55.6]} 48... Kxa7 {[%clk 0:01:35.7]} 49. Kxc6
{[%clk 0:00:57.5]} 49... Kb8 {[%clk 0:01:36.2]} 50. Kd7 {[%clk 0:00:57.8]} 50...
Kb7 {[%clk 0:01:36.8]} 51. d5 {[%clk 0:00:58.4]} 1-0

[Event "*** MasterClass Titled Tuesday Blitz"]
[Site "Chess.com"]
[Date "2017.12.05"]
[Round "4"]
[White "Sheik777"]
[Black "Jamaladam12200620"]
[Result "1-0"]
[WhiteElo "1780"]
[BlackElo "1947"]
[TimeControl "180+2"]
[EndTime "15:01:58 PST"]
[Termination "Sheik777 won by checkmate"]

1. e4 {[%clk 0:02:52.4]} 1... Nf6 {[%clk 0:02:59]} 2. e5 {[%clk 0:02:49.9]} 2...
Nd5 {[%clk 0:02:59.7]} 3. d4 {[%clk 0:02:49.6]} 3... d6 {[%clk 0:03:00.1]} 4. c4
{[%clk 0:02:47.8]} 4... Nb6 {[%clk 0:03:00.6]} 5. exd6 {[%clk 0:02:46]} 5...
cxd6 {[%clk 0:03:00.2]} 6. Nc3 {[%clk 0:02:43.4]} 6... g6 {[%clk 0:03:00.7]} 7.
h3 {[%clk 0:02:41.6]} 7... Bg7 {[%clk 0:03:01.6]} 8. Nf3 {[%clk 0:02:38.6]} 8...
Nc6 {[%clk 0:03:01.9]} 9. Be2 {[%clk 0:02:30.2]} 9... O-O {[%clk 0:03:01.8]} 10.
O-O {[%clk 0:02:27.9]} 10... Bf5 {[%clk 0:02:56.7]} 11. Bg5 {[%clk 0:02:22.5]}
11... h6 {[%clk 0:02:56.2]} 12. Be3 {[%clk 0:02:18]} 12... e5 {[%clk 0:02:44.8]}
13. dxe5 {[%clk 0:02:07.9]} 13... dxe5 {[%clk 0:02:43.8]} 14. c5 {[%clk
0:02:05.5]} 14... Nd7 {[%clk 0:02:24.5]} 15. Nb5 {[%clk 0:02:02.3]} 15... Qa5
{[%clk 0:01:29.4]} 16. Qc1 {[%clk 0:01:29.7]} 16... Rab8 {[%clk 0:01:00]} 17.
Bxh6 {[%clk 0:01:20.1]} 17... Bxh6 {[%clk 0:00:57.6]} 18. Qxh6 {[%clk 0:01:14]}
18... a6 {[%clk 0:00:57.5]} 19. Ng5 {[%clk 0:01:04.8]} 19... Nf6 {[%clk
0:00:56.3]} 20. Nd6 {[%clk 0:00:59.7]} 20... Nd4 {[%clk 0:00:47.3]} 21. Bc4
{[%clk 0:00:49.7]} 21... Qxc5 {[%clk 0:00:37.8]} 22. Ndxf7 {[%clk 0:00:46.3]}
22... Rxf7 {[%clk 0:00:11.3]} 23. Bxf7# {[%clk 0:00:36]} 1-0

[Event "*** MasterClass Titled Tuesday Blitz"]
[Site "Chess.com"]
[Date "2017.12.05"]
[Round "4"]
[White "goingin33"]
[Black "toad"]
[Result "1-0"]
[WhiteElo "2297"]
[BlackElo "2181"]
[TimeControl "180+2"]
[EndTime "15:02:21 PST"]
[Termination "goingin33 won on time"]

1. e4 {[%clk 0:02:48.3]} 1... c5 {[%clk 0:03:00.8]} 2. Nf3 {[%clk 0:02:47.2]}
2... d6 {[%clk 0:03:01.8]} 3. d4 {[%clk 0:02:48.8]} 3... cxd4 {[%clk 0:03:03.2]}
4. Qxd4 {[%clk 0:02:50.1]} 4... Nc6 {[%clk 0:03:03.7]} 5. Bb5 {[%clk 0:02:51.2]}
5... Bd7 {[%clk 0:03:05]} 6. Bxc6 {[%clk 0:02:52.1]} 6... Bxc6 {[%clk
0:03:06.5]} 7. Nc3 {[%clk 0:02:52.8]} 7... Nf6 {[%clk 0:03:07.6]} 8. Bg5 {[%clk
0:02:52.9]} 8... e6 {[%clk 0:03:08.6]} 9. O-O-O {[%clk 0:02:54.3]} 9... h6
{[%clk 0:03:08.9]} 10. Bxf6 {[%clk 0:02:42.5]} 10... Qxf6 {[%clk 0:03:09]} 11.
Qxf6 {[%clk 0:02:41.8]} 11... gxf6 {[%clk 0:03:10.4]} 12. Nd4 {[%clk 0:02:39.5]}
12... h5 {[%clk 0:03:06.8]} 13. h4 {[%clk 0:02:32.4]} 13... Rg8 {[%clk
0:03:02.8]} 14. g3 {[%clk 0:02:33.5]} 14... a6 {[%clk 0:02:58.3]} 15. Nxc6
{[%clk 0:02:33.8]} 15... bxc6 {[%clk 0:02:59.8]} 16. Na4 {[%clk 0:02:27]} 16...
d5 {[%clk 0:02:57.4]} 17. exd5 {[%clk 0:02:23.1]} 17... cxd5 {[%clk 0:02:58.1]}
18. Rhe1 {[%clk 0:02:22.6]} 18... Rd8 {[%clk 0:02:35.3]} 19. Nb6 {[%clk
0:02:13.4]} 19... Bc5 {[%clk 0:02:35.1]} 20. Nxd5 {[%clk 0:02:12.8]} 20... Rxd5
{[%clk 0:01:56.4]} 21. Rxd5 {[%clk 0:02:12.4]} 21... Bxf2 {[%clk 0:01:58.1]} 22.
Re2 {[%clk 0:02:13.7]} 22... Bxg3 {[%clk 0:01:55.7]} 23. Rxh5 {[%clk 0:02:07]}
23... Bf4+ {[%clk 0:01:55.8]} 24. Kd1 {[%clk 0:02:08.5]} 24... Rg1+ {[%clk
0:01:53.1]} 25. Re1 {[%clk 0:02:09.7]} 25... Rg2 {[%clk 0:01:54.8]} 26. Rf1
{[%clk 0:01:58.8]} 26... e5 {[%clk 0:01:52.5]} 27. Rxf4 {[%clk 0:01:50.6]} 27...
exf4 {[%clk 0:01:53.6]} 28. Rf5 {[%clk 0:01:52.3]} 28... Ke7 {[%clk 0:01:30.1]}
29. Rxf4 {[%clk 0:01:53.1]} 29... Rh2 {[%clk 0:01:25.1]} 30. b4 {[%clk
0:01:51.2]} 30... Ke6 {[%clk 0:01:24.4]} 31. a4 {[%clk 0:01:48.5]} 31... Ke5
{[%clk 0:01:24.4]} 32. Rc4 {[%clk 0:01:49.6]} 32... f5 {[%clk 0:01:21.7]} 33. b5
{[%clk 0:01:49.3]} 33... axb5 {[%clk 0:01:21.8]} 34. axb5 {[%clk 0:01:51.2]}
34... f4 {[%clk 0:01:03.3]} 35. b6 {[%clk 0:01:39.8]} 35... Rxh4 {[%clk
0:00:54.9]} 36. b7 {[%clk 0:01:40.6]} 36... Rh1+ {[%clk 0:00:55.8]} 37. Ke2
{[%clk 0:01:42]} 37... Rb1 {[%clk 0:00:57.4]} 38. Rc7 {[%clk 0:01:43]} 38... Ke4
{[%clk 0:00:51.3]} 39. Re7+ {[%clk 0:01:43.3]} 39... Kd4 {[%clk 0:00:51.2]} 40.
Kf3 {[%clk 0:01:41.6]} 40... f5 {[%clk 0:00:38.8]} 41. Kxf4 {[%clk 0:01:38.6]}
41... Kc5 {[%clk 0:00:10.5]} 42. Kxf5 {[%clk 0:01:34.8]} 42... Kd6 {[%clk
0:00:09.6]} 43. Rh7 {[%clk 0:01:33.7]} 43... Kc6 {[%clk 0:00:04.2]} 44. Ke5
{[%clk 0:01:34.7]} 44... Rb5+ {[%clk 0:00:03]} 45. Kd4 {[%clk 0:01:33.9]} 1-0

[Event "*** MasterClass Titled Tuesday Blitz"]
[Site "Chess.com"]
[Date "2017.12.05"]
[Round "4"]
[White "TheMagician"]
[Black "pedromartinez91"]
[Result "1-0"]
[WhiteElo "2187"]
[BlackElo "2245"]
[TimeControl "180+2"]
[EndTime "15:02:28 PST"]
[Termination "TheMagician won by resignation"]

1. d4 {[%clk 0:03:01.9]} 1... d5 {[%clk 0:02:55.7]} 2. Nf3 {[%clk 0:03:02.2]}
2... e6 {[%clk 0:02:55.2]} 3. c4 {[%clk 0:03:01.1]} 3... Be7 {[%clk 0:02:55.3]}
4. Nc3 {[%clk 0:03:00.8]} 4... Nf6 {[%clk 0:02:55.7]} 5. Bg5 {[%clk 0:03:01.3]}
5... O-O {[%clk 0:02:55]} 6. e3 {[%clk 0:02:58.8]} 6... h6 {[%clk 0:02:55.7]} 7.
Bxf6 {[%clk 0:02:35.5]} 7... Bxf6 {[%clk 0:02:56]} 8. Rc1 {[%clk 0:02:34]} 8...
a6 {[%clk 0:02:46.9]} 9. a3 {[%clk 0:02:33.9]} 9... c6 {[%clk 0:02:43.4]} 10.
Bd3 {[%clk 0:02:30.7]} 10... Nd7 {[%clk 0:02:41.3]} 11. O-O {[%clk 0:02:29.8]}
11... Qe7 {[%clk 0:01:57.8]} 12. e4 {[%clk 0:02:29.9]} 12... dxc4 {[%clk
0:01:56]} 13. Bxc4 {[%clk 0:02:30]} 13... e5 {[%clk 0:01:56.5]} 14. d5 {[%clk
0:02:23.7]} 14... Nb6 {[%clk 0:01:56]} 15. Qb3 {[%clk 0:01:56.1]} 15... Nxc4
{[%clk 0:01:51.7]} 16. Qxc4 {[%clk 0:01:56.9]} 16... Bd7 {[%clk 0:01:48.1]} 17.
Rfd1 {[%clk 0:01:52.5]} 17... Rfc8 {[%clk 0:01:41.8]} 18. Qb3 {[%clk 0:01:51.7]}
18... Rab8 {[%clk 0:01:38.1]} 19. h3 {[%clk 0:01:46.1]} 19... Qe8 {[%clk
0:01:30.7]} 20. Rc2 {[%clk 0:01:37.1]} 20... cxd5 {[%clk 0:01:30.9]} 21. Nxd5
{[%clk 0:01:36.2]} 21... Ba4 {[%clk 0:01:28.3]} 22. Rxc8 {[%clk 0:01:15.8]}
22... Rxc8 {[%clk 0:01:09.3]} 23. Qd3 {[%clk 0:01:13.8]} 23... Bxd1 {[%clk
0:01:09.6]} 24. Qxd1 {[%clk 0:01:14.4]} 24... Bd8 {[%clk 0:01:10.4]} 25. Kh2
{[%clk 0:01:09.1]} 25... Bg5 {[%clk 0:01:03.8]} 26. Nxg5 {[%clk 0:01:08.7]}
26... hxg5 {[%clk 0:01:04.5]} 27. Qg4 {[%clk 0:01:07.4]} 27... f6 {[%clk
0:00:47.1]} 28. Qxc8 {[%clk 0:01:05.3]} 28... Qxc8 {[%clk 0:00:43.6]} 29. Ne7+
{[%clk 0:01:06.2]} 29... Kf7 {[%clk 0:00:45.5]} 30. Nxc8 {[%clk 0:01:07.4]}
30... Ke6 {[%clk 0:00:47.3]} 31. Nb6 {[%clk 0:01:07.6]} 31... Kd6 {[%clk
0:00:48.3]} 32. b4 {[%clk 0:00:58.4]} 32... Kc6 {[%clk 0:00:47.3]} 33. Nc4
{[%clk 0:00:55.5]} 33... Kb5 {[%clk 0:00:46.9]} 34. Nd6+ {[%clk 0:00:55.7]}
34... Ka4 {[%clk 0:00:48.2]} 35. Nxb7 {[%clk 0:00:56.8]} 35... Kxa3 {[%clk
0:00:49.5]} 36. Nc5 {[%clk 0:00:58.1]} 36... Kxb4 {[%clk 0:00:50.9]} 37. Nxa6+
{[%clk 0:00:59.3]} 37... Kc4 {[%clk 0:00:52.8]} 38. f3 {[%clk 0:00:59.4]} 38...
Kd4 {[%clk 0:00:54.7]} 39. Nc7 {[%clk 0:01:00.1]} 39... g6 {[%clk 0:00:53.6]}
40. Ne8 {[%clk 0:01:00.2]} 40... f5 {[%clk 0:00:54.2]} 41. exf5 {[%clk
0:00:59.5]} 41... gxf5 {[%clk 0:00:56.1]} 42. Nd6 {[%clk 0:00:59.4]} 42... g4
{[%clk 0:00:48]} 43. Nxf5+ {[%clk 0:00:59.6]} 1-0

[Event "*** MasterClass Titled Tuesday Blitz"]
[Site "Chess.com"]
[Date "2017.12.05"]
[Round "4"]
[White "josemoramoron"]
[Black "DiogenesSinopeus"]
[Result "1-0"]
[WhiteElo "2181"]
[BlackElo "2379"]
[TimeControl "180+2"]
[EndTime "15:02:29 PST"]
[Termination "josemoramoron won on time"]

1. e4 {[%clk 0:03:01.9]} 1... c5 {[%clk 0:03:01]} 2. Nf3 {[%clk 0:03:01.1]} 2...
Nc6 {[%clk 0:03:02.2]} 3. d4 {[%clk 0:03:01.2]} 3... cxd4 {[%clk 0:03:04.1]} 4.
Nxd4 {[%clk 0:03:02.5]} 4... e5 {[%clk 0:03:05.6]} 5. Nb5 {[%clk 0:03:02.8]}
5... d6 {[%clk 0:03:06.9]} 6. N1c3 {[%clk 0:03:01.3]} 6... a6 {[%clk 0:03:08.3]}
7. Na3 {[%clk 0:03:02.3]} 7... b5 {[%clk 0:03:09.8]} 8. Nd5 {[%clk 0:03:02.8]}
8... Nge7 {[%clk 0:03:11.3]} 9. c4 {[%clk 0:02:58.5]} 9... Nd4 {[%clk
0:03:08.9]} 10. cxb5 {[%clk 0:02:49.2]} 10... Nxd5 {[%clk 0:03:08.4]} 11. exd5
{[%clk 0:02:48.8]} 11... Bd7 {[%clk 0:03:09.8]} 12. b6 {[%clk 0:02:37.2]} 12...
Qxb6 {[%clk 0:03:00.1]} 13. Bd3 {[%clk 0:02:37.5]} 13... Be7 {[%clk 0:02:40.1]}
14. O-O {[%clk 0:02:37.2]} 14... O-O {[%clk 0:02:41.1]} 15. Nc4 {[%clk
0:02:29.5]} 15... Qb7 {[%clk 0:02:35.4]} 16. Be3 {[%clk 0:02:28.6]} 16... Rac8
{[%clk 0:02:20.9]} 17. Bxd4 {[%clk 0:02:26]} 17... exd4 {[%clk 0:02:20.6]} 18.
Qf3 {[%clk 0:02:12.8]} 18... Bb5 {[%clk 0:02:15.6]} 19. Na5 {[%clk 0:02:06.5]}
19... Qd7 {[%clk 0:02:04.4]} 20. Bxb5 {[%clk 0:02:01.1]} 20... Qxb5 {[%clk
0:01:58]} 21. Nc6 {[%clk 0:02:00.7]} 21... Bf6 {[%clk 0:01:57.7]} 22. b3 {[%clk
0:02:00.1]} 22... Rce8 {[%clk 0:01:45.4]} 23. Rad1 {[%clk 0:01:57.2]} 23... Qc5
{[%clk 0:01:14.2]} 24. g3 {[%clk 0:01:52.3]} 24... Qa3 {[%clk 0:00:40.2]} 25.
Nxd4 {[%clk 0:01:51.4]} 25... Bxd4 {[%clk 0:00:28.1]} 26. Rxd4 {[%clk
0:01:53.3]} 26... Qxa2 {[%clk 0:00:29.2]} 27. Ra4 {[%clk 0:01:54.9]} 27... Qd2
{[%clk 0:00:10.9]} 28. Rxa6 {[%clk 0:01:55.8]} 28... Qb4 {[%clk 0:00:12.1]} 29.
Ra4 {[%clk 0:01:21.8]} 29... Qb6 {[%clk 0:00:12]} 30. Qd3 {[%clk 0:01:17.4]}
30... g6 {[%clk 0:00:09.6]} 31. Ra6 {[%clk 0:01:14.3]} 31... Qc5 {[%clk
0:00:09.5]} 32. Qc4 {[%clk 0:01:15.3]} 32... Qxc4 {[%clk 0:00:05.5]} 33. bxc4
{[%clk 0:01:16.1]} 33... Re4 {[%clk 0:00:07.1]} 34. Rc1 {[%clk 0:01:11.9]} 34...
Rc8 {[%clk 0:00:08]} 35. Rc6 {[%clk 0:01:01.3]} 35... Rxc6 {[%clk 0:00:05]} 36.
dxc6 {[%clk 0:01:03.2]} 36... Re5 {[%clk 0:00:05.9]} 37. c5 {[%clk 0:01:01.5]}
37... dxc5 {[%clk 0:00:06.1]} 38. c7 {[%clk 0:01:02.5]} 38... Re8 {[%clk
0:00:07.4]} 39. Rd1 {[%clk 0:01:03.4]} 1-0